Cogmind - Beta 14 @@@ ROGUE MODE // 2024.11.10 @ 18:24:57 Player: Fangrelle Result: Destroyed by Autobeam Turret with Autobeam Performance ------------- Evolutions (0) 0 Regions Visited (2) 400 Robots Destroyed (30) 150 Value Destroyed (559) 559 Prototype IDs (0) 0 Alien Tech Used (0) 0 Bonus (0) 0 TOTAL SCORE: 1109 Bonus ------- None Cogmind --------- Core Integrity 0/250 Matter 280/300 Energy 30/100 System Corruption 1% Temperature Cool (6) Movement Core (400) Ox7 Location -10/Subcaves Parts ------- > --- POWER (1) -------- (None) > --- PROPULSION (2) --- (None) > --- UTILITY (2) ------ Large Storage Unit > --- WEAPON (2) ------- Small Laser Small Laser > --- INVENTORY (15) --- Aluminum Leg Wheel Compact Wheel Terrain Scanner Hacking Suite Hacking Suite Tractor Beam Datajack Hammer Peak State ------------ > --- POWER ------------ Light Ion Engine > --- PROPULSION ------- Aluminum Leg Aluminum Leg > --- UTILITY ---------- Medium Storage Unit Terrain Scanner > --- WEAPON ----------- Small Laser Assault Rifle > --- INVENTORY -------- Ion Engine Light Treads Light Treads Wheel Compact Wheel Hacking Suite Tractor Beam Datajack [Rating: 8] Favorites ----------- Power Ion Engine Engine Ion Engine Propulsion Light Treads Treads Light Treads Leg Aluminum Leg Wheel Wheel Utility Medium Storage Unit Device Terrain Scanner Storage Medium Storage Unit Protection Light Armor Plating Weapon Small Laser Energy Gun Small Laser Ballistic Gun Assault Rifle Impact Weapon Hammer Build | -11 -10 -10 ------- Run | Yrd Mat Sub Slots Evolved . | . . . Power . | . . . Propulsion . | . . . Utility . | . . . Weapon . | . . . Parts Attached 16 | . 11 5 Power 1 | . 1 . Engine 1 | . 1 . Core . | . . . Reactor . | . . . Propulsion 4 | . 2 2 Treads 3 | . 2 1 Leg . | . . . Wheel 1 | . . 1 Hover . | . . . Flight . | . . . Utility 4 | . 4 . Device 1 | . 1 . Storage 2 | . 2 . Processor . | . . . Hackware . | . . . Protection 1 | . 1 . Artifact . | . . . Weapon 7 | . 4 3 Energy Gun 6 | . 3 3 Energy Cannon . | . . . Ballistic Gun . | . . . Ballistic Cannon . | . . . Launcher . | . . . Special Weapon . | . . . Impact Weapon 1 | . 1 . Slashing Weapon . | . . . Piercing Weapon . | . . . Special Melee Weapon . | . . . Unidentified Prototypes . | . . . Parts Lost 9 | . 3 6 Power 2 | . 1 1 Propulsion 3 | . 1 2 Utility 1 | . . 1 Weapon 3 | . 1 2 Highest Loss Streak 6 | . 3 6 To Critical Strikes . | . . . Average Slot Usage (%) 97 | . 98 74 Engine 13 | . 13 5 Treads 17 | . 18 16 Leg 9 | . 9 . Device 4 | . 4 . Storage 14 | . 14 14 Protection 7 | . 7 14 Energy Gun 21 | . 21 22 Ballistic Gun 4 | . 5 . Peak Build Rating 8 | . 8 8 Average Rating 7 | . 7 6 On Entrance 6 | 6 6 8 Naked Turns . | . . . Heaviest Build 32 | 11 32 . Greatest Support 40 | 20 40 . Greatest Overweight (x) 1 | . 1 . Average Overweight (x) . | . . . Largest Inventory Capacity 15 | . 15 15 Average Capacity 11 | . 11 15 Most Carried 11 | . 11 11 Average Carried 8 | . 8 10 Final Capacity 15 | 8 15 15 Final Carried 11 | 6 11 9 Class Distribution -------------------- 100% | Mutant Dominant Class ---------------- Mutant | -10/Materials Mutant | -10/Subcaves Resources | -11 -10 -10 ----------- Run | Yrd Mat Sub Matter Collected 454 | 200 254 . Remotely . | . . . Salvage Created 866 | . 783 83 Parts 53 | . 49 4 Haulers Intercepted 2 | . 2 . Recyclers Shooed 2 | . 2 . Parts Field Recycled . | . . . Retrieved Matter . | . . . Parts Self-Destructed 2 | . . 2 Prevented 1 | . . 1 Kills | -11 -10 -10 ------- Run | Yrd Mat Sub Combat Hostiles Destroyed 18 | . 14 4 Guns 14 | . 13 1 AOE 3 | . . 3 Classes Destroyed 9 | . 8 1 Worker 1 | . 1 . Tunneler 1 | . 1 . Hauler 2 | . 2 . Recycler 1 | . 1 . Operator 3 | . 3 . Turret 1 | . . 1 Watcher 3 | . 3 . Swarmer 10 | . 6 4 Grunt 8 | . 8 . Best Kill Streak 5 | . 5 4 Combat Bots Only 4 | . 3 4 Max Kills in Single Turn 3 | . 1 3 Gunslinging . | . . . Exploded 3 | . . 3 Melee . | . . . Uniques/NPCs Destroyed . | . . . Combat | -11 -10 -10 -------- Run | Yrd Mat Sub Hostile Shots Fired 227 | . 85 142 Missed 91 | . 25 66 Damage Taken 1222 | . 693 529 Core 255 | . 127 128 Absorbed by Shields . | . . . Core Remaining (%) 100 | 100 . . Volleys Fired 113 | . 96 17 Largest 2 | . 2 2 Hottest 80 | . 80 80 Shots Fired 196 | . 167 29 Gun 196 | . 167 29 Cannon . | . . . Launcher . | . . . Special . | . . . Kinetic 43 | . 43 . Thermal 115 | . 105 10 Explosive . | . . . Electromagnetic 38 | . 19 19 Robot Hit Streak 18 | . 18 5 Robot Miss Streak 4 | . 4 4 Penetration Max . | . . . Secondary Targets 1 | . 1 . Max Gunslinging Chain 1 | . 1 . Shots Hit Robots 113 | . 97 16 Core Hits 48 | . 40 8 Critical Kills . | . . . Critical Parts Destroyed . | . . . Critical Strikes 2 | . 1 1 Corrupt 2 | . 1 1 Melee Attacks 10 | . 10 . Impact 10 | . 10 . Slashing . | . . . Piercing . | . . . Sneak Attacks . | . . . Combat Hostiles . | . . . Follow-up Attacks . | . . . Damage Inflicted 1517 | . 1214 303 Guns 1403 | . 1194 209 Cannons . | . . . Explosions 114 | . 20 94 Melee . | . . . Ramming . | . . . Kinetic 305 | . 305 . Thermal 949 | . 779 170 Explosive . | . . . Electromagnetic 263 | . 130 133 Impact . | . . . Slashing . | . . . Piercing . | . . . Highest Corruption 1 | . 1 1 Average Corruption 1 | . 1 1 Corruption Purged . | . . . Corruption Blocked . | . . . Effects 15 | . 15 . Message Errors 3 | . 3 . Matter Fused 4 | . 4 . Heat Flow Errors 1 | . 1 . Energy Discharges 2 | . 2 . Data Loss (minor) 1 | . 1 . Data Loss (major) 3 | . 3 . Misfires 1 | . 1 . Overload Shots . | . . . Overflow Damage . | . . . Projectiles . | . . . Explosions . | . . . Melee . | . . . Knockbacks . | . . . Impact . | . . . Kinetic . | . . . Secondary . | . . . Self-Inflicted Damage . | . . . Shots . | . . . Rammed . | . . . Targets Rammed . | . . . Kicked . | . . . Crushed . | . . . Highest Temperature 193 | . 193 29 Average Temperature 50 | . 52 14 Received Heat Transfer 648 | . 240 408 Siege Activations . | . . . Robots Corrupted . | . . . Combat Hostiles . | . . . Parts Fried . | . . . Impact Corruptions . | . . . Robots Melted 1 | . 1 . Combat Hostiles 1 | . 1 . Parts Melted 3 | . 3 . Heat Transferred 2025 | . 1750 275 Parts Sabotaged . | . . . Parts Stolen . | . . . Parts Stripped . | . . . Power Chain Reactions 2 | . 1 1 Alert | -11 -10 -10 ------- Run | Yrd Mat Sub Peak Influence 258 | . 258 . Initial . | . . . Average 135 | . 135 . Maximum Alert Level 1 | . 1 . Low Security (%) 78 | . 78 . Level 1 21 | . 21 . Level 2 . | . . . Level 3 . | . . . Level 4 . | . . . Level 5 . | . . . High Security . | . . . Max Security . | . . . Squads Dispatched 5 | . 5 . Investigation 2 | . 2 . Extermination . | . . . Reinforcement 3 | . 3 . Assault . | . . . Garrison . | . . . Intercept . | . . . Searches Triggered . | . . . Construction Impeded . | . . . Haulers Reinforced . | . . . Active Scanning Responses . | . . . Cargo Convoy Interrupts . | . . . Stealth | -11 -10 -10 --------- Run | Yrd Mat Sub Distress Signals 1 | . 1 . Communications Jammed . | . . . Distress Signals . | . . . Times Spotted 72 | . 30 42 Peak Tracking Total 6 | . 6 6 Tactical Retreats 5 | . 2 3 Traps | -11 -10 -10 ------- Run | Yrd Mat Sub Traps Triggered 2 | . 2 . Indirectly . | . . . Trap Hack Attempts . | . . . Triggered . | . . . Disarmed . | . . . Reprogrammed . | . . . Reused . | . . . Traps Extracted . | . . . Installed . | . . . Triggered . | . . . Machines | -11 -10 -10 ---------- Run | Yrd Mat Sub Machines Disabled 4 | . 3 1 Max in Single Turn 1 | . 1 1 Machines Repaired . | . . . Machines Dismantled . | . . . Machines Sabotaged . | . . . Overloaded Fab Kills . | . . . Hacking | -11 -10 -10 --------- Run | Yrd Mat Sub Machines Accessed 7 | . 7 . Terminals 5 | . 5 . Fabricators . | . . . Repair Stations . | . . . Recycling Units 2 | . 2 . Scanalyzers . | . . . Garrison Access . | . . . Total Hacks 23 | . 23 . Successful 14 | . 14 . Failed 9 | . 9 . Catastrophic 1 | . 1 . Database Lockouts . | . . . Manual 21 | . 21 . Terminals 19 | . 19 . Fabricators . | . . . Repair Stations . | . . . Recycling Units 4 | . 4 . Scanalyzers . | . . . Garrison Access . | . . . Terminal Hacks 3 | . 3 . Robot Analysis 1 | . 1 . Terminal Index 1 | . 1 . Zone Layout 1 | . 1 . Fabricator Hacks . | . . . Repair Station Hacks . | . . . Recycling Unit Hacks 2 | . 2 . Report Inventory 2 | . 2 . Scanalyzer . | . . . Garrison Access Hacks . | . . . Unauthorized Hacks 9 | . 9 . Terminals 7 | . 7 . Assimilate 1 | . 1 . Botnet 5 | . 5 . Operators 1 | . 1 . Fabricators . | . . . Repair Stations . | . . . Recycling Units 2 | . 2 . Tunnel 2 | . 2 . Scanalyzers . | . . . Garrison Access . | . . . Data Cores Recovered . | . . . Used . | . . . Hacking Detections 5 | . 5 . Full Trace Events . | . . . Feedback Events . | . . . Feedback Blocked . | . . . Robot Schematics Acquired . | . . . Robots Built . | . . . Authchips . | . . . Time . | . . . Total Robot Build Rating . | . . . Part Schematics Acquired . | . . . Parts Built . | . . . Authchips . | . . . Time . | . . . Total Part Build Rating . | . . . Parts Repaired . | . . . Time . | . . . Parts Recycled . | . . . Recycled Matter . | . . . Retrieved Matter . | . . . Retrieved Components . | . . . Parts Scanalyzed . | . . . Part Schematics Acquired . | . . . Parts Damaged . | . . . Bothacking | -11 -10 -10 ------------ Run | Yrd Mat Sub Used RIF Installer . | . . . Robots Hacked . | . . . Non-combat . | . . . Combat . | . . . Robot Hacks Applied . | . . . Relay Couplers Released . | . . . Fabnet Peak Effective % . | . . . Robots Rewired . | . . . Allies Hacked . | . . . Hacks Repelled . | . . . Allies | -11 -10 -10 -------- Run | Yrd Mat Sub Total Allies . | . . . Largest Group . | . . . Highest-Rated Group . | . . . Highest-Rated Ally . | . . . Total Orders . | . . . Ally Attacks . | . . . Total Damage . | . . . Kills . | . . . Allies Corrupted . | . . . Allies Melted . | . . . Intel | -11 -10 -10 ------- Run | Yrd Mat Sub Robot Analysis Total 1 | . 1 . Derelict Logs Recovered . | . . . Drone Launches . | . . . Drone Recoveries . | . . . Exploration | -11 -10 -10 ------------- Run | Yrd Mat Sub Turns Passed 1764 | . 1712 52 Spaces Moved 841 | 1 840 . Core . | . . . Treads 479 | . 479 . Legs 362 | 1 361 . Wheels . | . . . Hover . | . . . Flight . | . . . Fastest Speed 120 | 120 120 . Average Speed 144 | 120 144 . Slowest Speed 190 | 120 190 . Overloaded Moves . | . . . Propulsion Burnouts . | . . . Robots Hopped . | . . . Cave-ins Triggered . | . . . Exploration Rate (%) 33 | 2 98 1 Regions Visited 2 Branch Regions 1 Pre-discovered Areas 2 | . 2 . Known Exits Taken . | . . . Unknown Exits Taken 2 | 1 1 . Scrap Searched . | . . . Spaces Dug . | . . . Terrain Destroyed 4 | . . 4 Melee . | . . . Projectile . | . . . AOE 4 | . . 4 Terrain Rammed . | . . . Walls Destroyed . | . . . Machines Disabled . | . . . Actions | -11 -10 -10 --------- Run | Yrd Mat Sub Total 1172 | . 1150 22 Wait 183 | . 183 . Move 839 | . 839 . Hop . | . . . Pick Up 6 | . 6 . Fast Attach 5 | . 5 . Attach 4 | . 2 2 Detach 2 | . 2 . Swap 7 | . 4 3 Drop 3 | . 3 . Fire 113 | . 96 17 Melee 10 | . 10 . Ram . | . . . Kick . | . . . Crush . | . . . Escape Stasis . | . . . Rewire . | . . . Trap . | . . . Miscellaneous . | . . . Route ------- -11/Scrapyard -10/Materials (discovered 5 exits: [*Mat x3] / [*Min] / [*Sub]) -10/Subcaves (discovered 1 exit: [*Rec]) History --------- Turn | Location | Event 1 | -11/Scrapyard | Discovered new exit (range 0) 1 | -11/Scrapyard | Entered Materials 313 | -10/Materials | Build established: Mutant 438 | -10/Materials | Discovered new exit (range 15) 658 | -10/Materials | Lost 3 parts (1p1n1w) 663 | -10/Materials | Core integrity fell below 50% 756 | -10/Materials | Discovered new exit (range 8) 879 | -10/Materials | Discovered new exit (range 15) 1131 | -10/Materials | Discovered new exit (range 16) 1700 | -10/Materials | Discovered new exit (range 3) 1713 | -10/Materials | Entered Subcaves 1721 | -10/Subcaves | Discovered new exit (range 13) 1736 | -10/Subcaves | Core integrity fell below 20% 1765 | -10/Subcaves | Destroyed by Autobeam Turret with Autobeam Last Messages --------------- AMBIENT_HEAT=-10 GOAL=ESCAPE 01718_ S-10 Pest destroyed. 01721_ Chain reaction triggered in Lgt. Ion Engine. 01721_ S-10 Pest destroyed. 01721_ EXIT=FOUND 01721_ Machine disabled. 01725_ Subatomizers dissect the Flight Unit. 01727_ Lgt. Assault Rifle fries itself beyond repair. 01735_ Flight Unit self-destruct mechanism malfunctions. 01736_ Subatomizers dissect the Flight Unit. 01737_ Lgt. Treads destroyed. 01737_ Ion Engine destroyed. 01741_ EM Pulse Gun destroyed. 01746_ Autobeam Turret destroyed. 01749_ EM Pulse Gun destroyed. 01751_ Subatomizers dissect the Flight Unit. 01753_ Lgt. Treads destroyed. 01761_ Lgt. Armor Plating destroyed. 01765_ Subatomizers dissect the Flight Unit. Map ----- +----------------------------------------------------+ | ?????????????????????????????????????????????????? | | ?????????????????????????????????????????????????? | | ?????????????????????????????????????????????????? | | ?????????????????????????????????????????????????? | | ?????????????????????????????????????????????????? | | ?????????????????????????????????????????????????? | | ?????????????????????????????????????????????????? | | ?????????????????????????????????????????????????? | | ?????????????????????????????????????????????????? | | ?????????????????????????????????????????????????? | | ?????????????????????????????????????????????????? | | ?????????????????????????????????????????????????? | | ?????????????????? ?????????????????????????????? | | ?????????????????# #????????????????????????????? | | ?????????????????# #???????????????????????????? | | ?????????????????? ???????????????????????????? | | ??????????????????? ?????#????????????????????? | | ??????????????????? ????# ????????????????????? | | ???????????????????? ???? #????????????????????? | | ????????????????????? ??? ????????????????????? | | ?????????????????????# ??# #????????????????????? | | ?????????????????????# ## ##???????????????????? | | ?????????????????????# #???????????????????? | | ?????????????????????# ##??????????????????? | | ?????????????????????# #??????????????????? | | ??????????????????????# @ #???????????????????? | | ??????????????????????## ###???????????????????? | | ???????????????????????# #?????????????????????? | | ???????????????????????# #?????????????????????? | | ???????????????????????; #?????????????????????? | | ???????????????????????; ;?????????????????????? | | ??????????????????????#;%=%#?????????????????????? | | ?????????????????????? %% ?????????????????????? | | ?????????????????????? ?????????????????????? | | ????????????????????? ?????????????????????? | | ????????????????????? % t ?????????????????????? | | ?????????????????????" " " ????????????????????? | | ????????????????????#" " """????????????????????? | | ?????????????????????###?